bitfinex/quotes_BTCUSD_20240803
["timestamp","ask_amount","ask_price","bid_price","bid_amount"]
[1722703429081,1.31097524,60684.0,60683.0,0.000913]
[1722703429447,1.41097524,60684.0,60683.0,0.000913]
[1722703430467,1.74055124,60684.0,60683.0,0.000913]
[1722703431026,1.41097524,60684.0,60683.0,0.000913]
[1722703431636,1.08139924,60684.0,60683.0,0.000913]
[1722703432161,1.41097524,60684.0,60683.0,0.000913]
[1722703434219,0.32224724,60684.0,60683.0,0.000913]
[1722703434773,0.65182324,60684.0,60683.0,0.000913]
[1722703435342,0.32224724,60684.0,60683.0,0.000913]
[1722703435539,0.99089419,60684.0,60683.0,0.000913]
[1722703435744,0.66131819,60684.0,60683.0,0.000913]
[1722703435953,0.66131819,60684.0,60660.0,0.09777934]
[1722703435954,0.2527,60683.0,60660.0,0.09777934]
[1722703436217,0.494535,60663.0,60655.0,0.010208]
[1722703436419,0.494535,60663.0,60662.0,0.00309281]
[1722703436792,0.96129316,60663.0,60662.0,0.00309281]
[1722703437184,1.29098316,60663.0,60662.0,0.00309281]
[1722703437965,1.63818316,60663.0,60662.0,0.00309281]
[1722703438164,1.39098316,60663.0,60662.0,0.00309281]
[1722703439404,1.29098316,60663.0,60662.0,0.00309281]
[1722703440002,1.4484424,60663.0,60662.0,0.00309281]
[1722703440208,0.00157439,60668.0,60662.0,0.56129281]
[1722703440382,0.15745924,60681.0,60665.0,0.07875194]
[1722703440632,0.494452,60673.0,60672.0,0.07875194]
[1722703440866,0.29449974,60673.0,60665.0,0.07875194]
[1722703441084,0.32962,60676.0,60665.0,0.07875194]
[1722703441085,0.1370405,60672.0,60665.0,0.07875194]
[1722703441291,0.329594,60681.0,60665.0,0.07875194]
[1722703441494,0.00926636,60682.0,60673.0,0.07875194]
[1722703441495,0.164805,60678.0,60673.0,0.07875194]
[1722703441705,0.13703285,60677.0,60673.0,0.07875194]
[1722703441906,0.13703285,60677.0,60674.0,0.01135059]
[1722703441907,0.13702539,60677.0,60674.0,0.01135059]
[1722703442149,0.13702539,60677.0,60673.0,0.07875194]
[1722703442354,0.00930505,60688.0,60675.0,0.00901025]
[1722703442564,0.00930505,60688.0,60687.0,0.07875194]
[1722703442565,0.17408405,60688.0,60687.0,0.07875194]
[1722703442769,0.1370039,60688.0,60680.0,0.07875194]
[1722703442998,0.164786,60685.0,60681.0,0.06369519]
[1722703443458,0.32955,60689.0,60681.0,0.06369519]
[1722703443459,0.13700205,60684.0,60681.0,0.06369519]
[1722703443733,0.0092022,60690.0,60681.0,0.06369519]
[1722703443913,0.164771,60690.0,60689.0,0.07875194]
[1722703444119,0.329563,60687.0,60682.0,0.01424471]
[1722703444309,0.1737,60704.0,60663.0,0.00999425]
[1722703444310,0.164796,60681.0,60663.0,0.00999425]
[1722703444514,0.164789,60684.0,60680.0,0.07875194]
[1722703444658,0.13701016,60683.0,60680.0,0.07875194]
[1722703444854,0.329468,60704.0,60680.0,0.07875194]
[1722703444855,0.329538,60691.0,60680.0,0.07875194]
[1722703445139,0.05723796,60705.0,60680.0,0.07875194]
[1722703445140,0.15745924,60690.0,60687.0,0.07875194]
[1722703445350,0.164775,60689.0,60687.0,0.07875194]
[1722703445542,0.15745924,60688.0,60680.0,0.07875194]
[1722703445772,0.15745924,60688.0,60676.0,0.3113]
[1722703445773,0.494421,60677.0,60676.0,0.3113]
[1722703445969,0.15745924,60688.0,60669.0,0.2469]
[1722703445970,0.329598,60680.0,60669.0,0.2469]
[1722703446196,0.39805924,60688.0,60669.0,0.2469]
[1722703446197,0.329634,60674.0,60669.0,0.2469]
[1722703446402,0.15745924,60673.0,60672.0,0.07875194]
[1722703446641,0.78894015,60673.0,60672.0,0.07875194]
[1722703446866,0.78893961,60673.0,60672.0,0.07875194]
[1722703447072,0.78893961,60673.0,60665.0,0.07875194]
[1722703447073,0.29448761,60673.0,60665.0,0.07875194]
[1722703447260,0.329648,60671.0,60665.0,0.11171772]
[1722703447472,0.296062,60670.0,60665.0,0.11171772]
[1722703447800,0.368,60690.0,60666.0,0.03626235]
[1722703447801,0.15745924,60669.0,60666.0,0.03626235]
[1722703448225,0.329673,60666.0,60661.0,0.2469]
[1722703448430,0.1737,60684.0,60656.0,0.07875194]
[1722703448431,0.65199424,60663.0,60656.0,0.07875194]
[1722703448581,1.31137424,60663.0,60656.0,0.07875194]
[1722703448783,1.11873771,60663.0,60656.0,0.07875194]
[1722703449222,1.11873771,60663.0,60644.0,0.0001]
[1722703449385,1.154048,60656.0,60644.0,0.0001]
[1722703449588,1.44856071,60656.0,60644.0,0.0001]
[1722703449791,1.61991612,60656.0,60644.0,0.0001]
[1722703450200,0.15745924,60656.0,60655.0,0.66318074]
[1722703450402,0.32232324,60656.0,60655.0,0.66318074]
[1722703450559,0.65205124,60656.0,60655.0,0.67476358]
[1722703450764,0.15745924,60656.0,60655.0,0.67476358]
[1722703451037,0.78912665,60656.0,60655.0,0.67476358]
[1722703451503,0.78912665,60656.0,60655.0,0.42786358]
[1722703451830,0.05720761,60675.0,60655.0,0.43786358]
[1722703452032,0.01,60695.0,60667.0,0.07875194]
[1722703452033,0.13704772,60674.0,60667.0,0.07875194]
[1722703452234,0.13704772,60673.0,60668.0,0.5582]
[1722703452365,0.329619,60677.0,60668.0,0.5582]
[1722703452568,0.164812,60675.0,60669.0,0.0114117]
[1722703452829,0.13702598,60674.0,60670.0,0.06483636]
[1722703453005,0.00922676,60680.0,60670.0,0.07623584]
[1722703453205,0.29447425,60679.0,60678.0,0.07875194]
[1722703453406,0.15745924,60679.0,60678.0,0.07875194]
[1722703453564,0.29447213,60679.0,60678.0,0.07875194]
[1722703453987,0.15745924,60679.0,60678.0,0.07875194]
[1722703455452,0.15745924,60679.0,60670.0,0.09817657]
[1722703455659,0.15745924,60679.0,60668.0,0.5582]
[1722703455660,0.13701043,60678.0,60674.0,0.07875194]
[1722703455858,0.494461,60672.0,60671.0,0.01138725]
[1722703456074,0.329652,60670.0,60662.0,0.2469]
[1722703456289,0.29605471,60669.0,60663.0,0.07875194]
[1722703456494,0.29781149,60676.0,60658.0,0.3113]
[1722703456495,0.29448032,60668.0,60658.0,0.3113]
[1722703456715,0.164841,60665.0,60658.0,0.3113]
[1722703456944,0.164841,60665.0,60662.0,0.07875194]
[1722703456945,0.46089771,60664.0,60662.0,0.07875194]
[1722703457130,0.13702108,60663.0,60662.0,0.07875194]
[1722703457449,0.29448032,60663.0,60662.0,0.11775713]
[1722703457929,0.29448032,60663.0,60662.0,0.07875194]
[1722703458328,0.13702108,60663.0,60662.0,0.07875194]
[1722703458579,0.15745924,60663.0,60662.0,0.07875194]
[1722703458966,0.15721149,60678.0,60662.0,0.07875194]
[1722703459168,0.29449547,60677.0,60673.0,0.07875194]
[1722703459495,0.30184623,60676.0,60673.0,0.07875194]
[1722703459692,0.33889502,60678.0,60673.0,0.07875194]
[1722703459693,0.29606986,60675.0,60673.0,0.07875194]
[1722703459843,0.13703623,60674.0,60673.0,0.07875194]
[1722703460047,0.29449547,60674.0,60673.0,0.65055194]
[1722703460250,0.15745924,60674.0,60673.0,0.72696994]
[1722703460409,0.15745924,60674.0,60673.0,0.66191475]
[1722703460606,0.15745924,60674.0,60673.0,0.01136281]
[1722703460607,0.78893489,60674.0,60673.0,0.01136281]
[1722703460836,0.4657898,60674.0,60673.0,0.01136281]
[1722703461035,0.29448989,60674.0,60665.0,0.2598]
[1722703461240,0.45930789,60673.0,60671.0,0.07875194]
[1722703461460,0.13703065,60672.0,60671.0,0.07875194]
[1722703461725,0.29448989,60672.0,60671.0,0.07875194]
[1722703462669,0.29449174,60672.0,60671.0,0.07875194]
[1722703462913,0.15745924,60672.0,60671.0,0.07875194]
[1722703463153,0.29449225,60672.0,60671.0,0.07875194]
[1722703463665,0.15745924,60672.0,60671.0,0.07875194]
[1722703463897,0.29449414,60672.0,60671.0,0.07875194]
[1722703464108,0.15745924,60672.0,60671.0,0.07875194]
[1722703465671,0.15745924,60672.0,60671.0,0.0964746]
[1722703467101,0.15745924,60672.0,60671.0,0.07875194]
[1722703474288,0.00083,60697.0,60672.0,0.26979425]
[1722703474491,0.47251164,60691.0,60689.0,0.07875194]
[1722703474700,0.15745924,60690.0,60689.0,0.07875194]
[1722703475301,0.15745924,60690.0,60689.0,0.39075194]
[1722703475660,0.15745924,60690.0,60689.0,0.40191929]
[1722703479024,0.15745924,60690.0,60689.0,0.32316735]
[1722703479179,0.32223024,60690.0,60689.0,0.01116735]
[1722703479380,0.15745924,60690.0,60681.0,0.2598]
[1722703479580,0.00157439,60689.0,60679.0,0.312]
[1722703479826,0.15745924,60688.0,60679.0,0.312]
[1722703480034,0.15745924,60688.0,60680.0,0.07875194]
[1722703480176,0.15745924,60688.0,60687.0,0.07875194]
[1722703481590,0.00083,60697.0,60687.0,0.07875194]
[1722703481795,0.15745924,60696.0,60694.0,0.07875194]
[1722703482204,0.76751118,60695.0,60674.0,0.09846849]
[1722703482408,0.164807,60677.0,60662.0,0.301513]
[1722703482699,0.164807,60677.0,60665.0,0.47251164]
[1722703482700,0.16638439,60676.0,60665.0,0.47251164]
[1722703482809,0.16638139,60677.0,60663.0,0.13290324]
[1722703483008,0.00157439,60677.0,60663.0,0.13290324]
[1722703483466,0.15745924,60676.0,60663.0,0.13290324]
[1722703483665,0.00157439,60675.0,60664.0,0.07073807]
[1722703483863,0.00157439,60675.0,60664.0,0.06744162]
[1722703483864,0.15745924,60674.0,60664.0,0.06744162]
[1722703484076,0.15745924,60674.0,60670.0,0.07875194]
[1722703484480,0.00157439,60673.0,60670.0,0.07875194]
[1722703484760,0.32228024,60672.0,60664.0,0.06744162]
[1722703484957,0.32228124,60672.0,60665.0,0.04477066]
[1722703485177,0.00157439,60671.0,60665.0,0.04477066]
[1722703485399,0.329665,60668.0,60663.0,0.07875194]
[1722703485598,0.329665,60668.0,60662.0,0.000913]
[1722703485599,0.15745924,60667.0,60662.0,0.000913]
[1722703485839,0.00157439,60666.0,60662.0,0.000913]
[1722703485987,0.00157439,60663.0,60662.0,0.000913]
[1722703486191,0.32230424,60663.0,60662.0,0.000913]
[1722703486394,0.98168424,60663.0,60662.0,0.000913]
[1722703487634,2.11400691,60663.0,60662.0,0.000913]
[1722703488207,2.59077291,60663.0,60662.0,0.000913]
[1722703488464,2.58077291,60663.0,60662.0,0.000913]
[1722703488673,2.59077291,60663.0,60662.0,0.000913]
[1722703488880,2.58077291,60663.0,60662.0,0.000913]
[1722703489081,2.59077291,60663.0,60662.0,0.000913]
[1722703489284,2.58077291,60663.0,60662.0,0.000913]
[1722703489487,2.25108291,60663.0,60662.0,0.000913]
[1722703489695,1.94267424,60663.0,60662.0,0.000913]
[1722703489899,2.11402114,60663.0,60662.0,0.000913]
[1722703490277,2.12368141,60663.0,60662.0,0.000913]
[1722703491431,2.45337141,60663.0,60662.0,0.000913]
[1722703491809,2.46337141,60663.0,60662.0,0.000913]
[1722703492019,2.45337141,60663.0,60662.0,0.000913]
[1722703492235,2.45337141,60663.0,60662.0,1e-06]
[1722703492236,3.87653263,60663.0,60662.0,1e-06]
[1722703492436,3.52384263,60663.0,60662.0,1e-06]
[1722703492646,3.54684263,60663.0,60662.0,1e-06]
[1722703492848,3.54684263,60663.0,60654.0,0.14590899]
[1722703492849,1.154065,60655.0,60654.0,0.14590899]
[1722703493089,1.41152424,60655.0,60654.0,0.14590899]
[1722703493299,1.91495724,60655.0,60654.0,0.14590899]
[1722703493510,1.92495724,60655.0,60654.0,0.14590899]
[1722703493718,2.22495724,60655.0,60654.0,0.14590899]
[1722703493922,2.61125724,60655.0,60654.0,0.14590899]
[1722703494126,1.987473,60647.0,60646.0,0.14999999]
[1722703494335,1.91515524,60647.0,60646.0,0.14999999]
[1722703494537,1.94515524,60647.0,60646.0,0.14999999]
[1722703494742,0.75212424,60647.0,60646.0,0.14999999]
[1722703494954,1.08190124,60647.0,60646.0,0.14999999]
[1722703495160,0.42234724,60647.0,60646.0,0.14999999]
[1722703495378,0.15745924,60647.0,60646.0,0.14999999]
[1722703495584,0.98190124,60647.0,60646.0,0.14999999]
[1722703495794,0.32234724,60647.0,60646.0,0.14999999]
[1722703496007,0.48723624,60647.0,60646.0,0.14999999]
[1722703496242,0.32234724,60647.0,60646.0,0.14999999]
[1722703496449,0.16696961,60647.0,60646.0,0.14999999]
[1722703497419,0.00157439,60654.0,60650.0,0.00999425]
[1722703497638,0.4677,60692.0,60654.0,0.5406]
[1722703497639,0.00968204,60675.0,60654.0,0.5406]
[1722703497855,0.1737,60663.0,60647.0,0.24]
[1722703498062,0.4677,60674.0,60655.0,0.01184975]
[1722703498277,0.00157439,60673.0,60657.0,0.5406]
[1722703498487,0.00157439,60681.0,60657.0,0.5406]
[1722703498719,0.00157439,60682.0,60658.0,0.02181307]
[1722703498928,0.4821396,60683.0,60657.0,0.5406]
[1722703499135,0.16481,60676.0,60657.0,0.5406]
[1722703499353,0.329631,60674.0,60657.0,0.5406]
[1722703499568,0.15903363,60673.0,60663.0,0.07875194]
[1722703499811,0.15745924,60673.0,60663.0,0.07875194]
[1722703500016,0.00157439,60672.0,60664.0,0.01173972]
[1722703500225,0.275,60687.0,60672.0,0.2424]
[1722703500226,0.16478,60687.0,60672.0,0.2424]
[1722703500476,0.47251164,60685.0,60678.0,0.07875194]
[1722703500681,0.00943631,60687.0,60678.0,0.07875194]
[1722703500682,0.15745924,60684.0,60678.0,0.07875194]
[1722703500890,0.15745924,60684.0,60679.0,0.01155641]
[1722703501305,0.15745924,60684.0,60680.0,0.07875194]
[1722703501721,0.15745924,60684.0,60681.0,0.01153198]
[1722703502184,0.15745924,60684.0,60680.0,0.07875194]
[1722703502415,0.48705324,60681.0,60673.0,0.3305]
[1722703502617,0.164842,60664.0,60663.0,0.3305]
[1722703502826,0.15745924,60664.0,60658.0,0.29945943]
[1722703503048,0.164853,60660.0,60659.0,0.06299594]
[1722703503256,0.15745924,60660.0,60658.0,0.2424]
[1722703503477,0.00157439,60659.0,60658.0,0.2424]
[1722703503739,0.05427717,60673.0,60658.0,0.2424]
[1722703503951,0.15745924,60681.0,60673.0,0.2524]
[1722703504159,0.15745924,60681.0,60674.0,0.3305]
[1722703504635,0.329441,60709.0,60679.0,0.07875194]
[1722703504636,0.1997,60707.0,60679.0,0.07875194]
[1722703504845,0.15745924,60696.0,60687.0,0.5729]
[1722703505075,0.15745924,60696.0,60694.0,0.07875194]
[1722703505321,0.00157439,60714.0,60693.0,0.07875194]
[1722703505518,0.47251164,60722.0,60696.0,0.5729]
[1722703505725,0.47251164,60722.0,60697.0,0.06630129]
[1722703505726,0.47251164,60706.0,60697.0,0.06630129]
[1722703505928,0.2421,60716.0,60697.0,0.07763785]
[1722703506134,0.164729,60706.0,60697.0,0.07763785]
[1722703506344,0.15745924,60705.0,60697.0,0.07763785]
[1722703506566,0.15745924,60705.0,60697.0,0.01133656]
[1722703506809,0.329488,60701.0,60697.0,0.01133656]
[1722703507015,1.67500924,60698.0,60697.0,0.01133656]
[1722703507240,3.08350924,60698.0,60697.0,0.01133656]
[1722703507446,3.08350924,60698.0,60665.0,0.5729]
[1722703507447,0.164836,60666.0,60665.0,0.5729]
[1722703507684,0.65196824,60666.0,60665.0,0.3305]
[1722703507897,0.65196824,60666.0,60662.0,0.000913]
[1722703507898,0.164845,60663.0,60662.0,0.000913]
[1722703508106,0.32230424,60663.0,60662.0,0.000913]
[1722703508315,0.65199424,60663.0,60662.0,0.000913]
[1722703508534,0.32230424,60663.0,60662.0,0.000913]
[1722703508736,0.98168424,60663.0,60662.0,0.000913]
[1722703509443,0.15745924,60663.0,60662.0,0.000913]
[1722703509912,0.00157439,60675.0,60663.0,0.2524]
[1722703510118,0.15745924,60674.0,60673.0,0.07875194]
[1722703510336,0.329573,60685.0,60673.0,0.07875194]
[1722703510337,0.47251164,60696.0,60677.0,0.012]
[1722703510558,0.47251164,60678.0,60673.0,0.65165194]
[1722703510786,0.4258,60704.0,60673.0,0.65165194]
[1722703510787,0.329506,60697.0,60680.0,0.07875194]
[1722703511004,0.00157439,60696.0,60680.0,0.07875194]
[1722703511264,0.268,60707.0,60680.0,0.07875194]
[1722703511265,0.00157439,60698.0,60687.0,0.5729]
[1722703511478,0.580742,60724.0,60693.0,0.3305]
[1722703511479,0.47251164,60697.0,60693.0,0.3305]
[1722703511697,0.329431,60711.0,60694.0,0.03305]
[1722703511909,0.47251164,60706.0,60694.0,0.03305]
[1722703512175,0.15745924,60705.0,60694.0,0.03305]
[1722703512400,0.15745924,60705.0,60699.0,0.07875194]
[1722703512638,0.48182239,60722.0,60700.0,0.5729]
[1722703512852,0.15903363,60721.0,60709.0,0.07875194]
[1722703513063,0.15745924,60721.0,60706.0,0.07875194]
[1722703513292,0.15745924,60721.0,60714.0,0.07875194]
[1722703513497,0.15745924,60721.0,60707.0,0.01121448]
[1722703513671,0.15745924,60721.0,60715.0,0.01111684]
[1722703513903,0.15745924,60721.0,60708.0,0.00899664]
[1722703514347,0.15745924,60721.0,60709.0,0.07875194]
[1722703514838,0.15745924,60721.0,60710.0,0.01117786]
[1722703515061,0.15745924,60721.0,60711.0,0.00329392]
[1722703515278,0.15745924,60721.0,60712.0,0.5729]
[1722703515489,0.15745924,60721.0,60713.0,0.00329381]
[1722703515698,0.15745924,60721.0,60714.0,0.06549457]
[1722703516131,0.15745924,60721.0,60715.0,0.01111684]
[1722703516562,0.329383,60720.0,60715.0,0.01111684]
[1722703516771,0.48684724,60719.0,60715.0,0.01111684]
[1722703516950,0.15745924,60719.0,60715.0,0.01111684]
[1722703517193,0.15745924,60719.0,60714.0,0.06549457]
[1722703517194,0.15745924,60719.0,60716.0,0.06495114]
[1722703517405,0.15745924,60719.0,60716.0,0.01110464]
[1722703517611,0.823492,60717.0,60716.0,0.01110464]
[1722703517818,0.48685624,60717.0,60712.0,0.3305]
[1722703518046,0.15745924,60717.0,60713.0,0.05729]
[1722703518261,0.00928,60724.0,60713.0,0.06843125]
[1722703518481,0.00928,60724.0,60721.0,0.07875194]
[1722703518687,0.00928,60724.0,60714.0,0.57619388]
[1722703518688,0.164685,60722.0,60714.0,0.5729]
[1722703518906,0.16469,60720.0,60715.0,0.15108965]
[1722703519078,0.32214524,60722.0,60715.0,0.07233771]
[1722703519313,0.00928,60724.0,60714.0,0.5729]
[1722703519314,0.15745924,60721.0,60716.0,0.06452377]
[1722703519499,0.15745924,60721.0,60716.0,0.07562841]
[1722703519979,0.00157439,60720.0,60716.0,0.07562841]
[1722703520194,0.15745924,60719.0,60716.0,0.07562841]
[1722703520481,0.15745924,60719.0,60714.0,0.3305]
[1722703520681,0.00157439,60718.0,60707.0,0.254]
[1722703520887,0.15745924,60717.0,60715.0,0.01111684]
[1722703521063,0.00157439,60716.0,60707.0,0.254]
[1722703521310,0.329413,60714.0,60708.0,0.05629]
[1722703521521,0.15903363,60713.0,60708.0,0.06749227]
[1722703521732,1.57549924,60709.0,60708.0,0.01120227]
[1722703521939,2.09863924,60709.0,60708.0,0.01120227]
[1722703522152,2.09863924,60709.0,60684.0,0.254]
[1722703522153,0.164785,60685.0,60684.0,0.254]
[1722703522356,0.15745924,60685.0,60679.0,0.3089]
[1722703522562,0.15903363,60684.0,60680.0,0.07814116]
[1722703522787,0.164796,60681.0,60680.0,0.07814116]
[1722703523002,0.164812,60675.0,60671.0,0.5629]
[1722703523234,0.16638939,60674.0,60671.0,0.5629]
[1722703523457,0.16482,60672.0,60671.0,0.62706519]
[1722703523655,0.00157439,60673.0,60671.0,0.62706519]
[1722703523875,0.15745924,60672.0,60671.0,0.5629]
[1722703524091,0.15745924,60672.0,60662.0,0.000913]
[1722703524299,0.00157439,60671.0,60662.0,0.000913]
[1722703524542,0.824225,60663.0,60662.0,0.000913]
[1722703524754,1.30637424,60663.0,60662.0,0.000913]
[1722703525189,0.31730424,60663.0,60662.0,0.000913]
[1722703525399,0.64856863,60663.0,60662.0,0.000913]
[1722703525617,0.00157439,60670.0,60662.0,0.254913]
[1722703525815,0.00157439,60670.0,60668.0,0.07875194]
[1722703526029,0.15745924,60669.0,60663.0,0.10424324]
[1722703526234,0.00157439,60674.0,60663.0,0.10424324]
[1722703526447,0.00157439,60680.0,60673.0,0.07875194]
[1722703526653,0.00157439,60684.0,60673.0,0.07875194]
[1722703526856,0.00157439,60687.0,60680.0,0.07875194]
[1722703527068,0.00157439,60687.0,60680.0,0.33275194]
[1722703527360,0.15745924,60686.0,60682.0,0.3089]
[1722703527560,0.268,60704.0,60682.0,0.3089]
[1722703527561,0.329505,60697.0,60682.0,0.3089]
[1722703527761,0.15745924,60696.0,60689.0,0.07875194]
[1722703527963,0.164769,60691.0,60689.0,0.07875194]
[1722703528182,0.16479,60683.0,60682.0,0.3089]
[1722703528405,0.164788,60684.0,60683.0,0.06749271]
[1722703528617,0.823952,60683.0,60682.0,0.01151976]
[1722703528825,0.98141124,60683.0,60682.0,0.01151976]
[1722703529039,0.15745924,60683.0,60664.0,0.59881562]
[1722703529247,0.329673,60666.0,60665.0,0.05997286]
[1722703529455,0.329673,60666.0,60646.0,0.14999999]
[1722703529456,0.15745924,60666.0,60656.0,0.5629]
[1722703529659,0.15745924,60665.0,60656.0,0.5629]
[1722703529863,0.00157439,60664.0,60656.0,0.5629]
[1722703530080,0.15745924,60663.0,60657.0,0.07875194]
[1722703530313,0.00157439,60681.0,60657.0,0.08204896]
[1722703530529,0.15745924,60677.0,60673.0,0.07875194]
[1722703530740,0.164813,60675.0,60673.0,0.07875194]
[1722703530942,0.15903363,60674.0,60657.0,0.07875194]
[1722703531174,0.164829,60669.0,60657.0,0.07875194]
[1722703531387,0.00157439,60687.0,60673.0,0.07875194]
[1722703531591,0.164836,60666.0,60665.0,0.5629]
[1722703531795,0.48707224,60678.0,60666.0,0.0563813]
[1722703532001,0.164829,60669.0,60658.0,0.5629]
[1722703532203,0.15745924,60678.0,60668.0,0.07875194]
[1722703532424,0.15745924,60678.0,60675.0,0.07875194]
[1722703532425,0.00157439,60677.0,60675.0,0.07875194]
[1722703532668,0.00157439,60677.0,60658.0,0.57289425]
[1722703532669,0.15745924,60676.0,60658.0,0.57289425]
[1722703532909,0.164845,60663.0,60662.0,0.05829373]
[1722703533158,0.65199424,60663.0,60662.0,0.000913]
[1722703533412,0.98168424,60663.0,60662.0,0.000913]
[1722703534128,1.08168424,60663.0,60662.0,0.000913]
[1722703534826,1.08168424,60663.0,60644.0,0.0001]
[1722703534827,1.184542,60647.0,60644.0,0.0001]
[1722703535054,1.67177824,60647.0,60644.0,0.0001]
[1722703535257,1.77177824,60647.0,60644.0,0.0001]
[1722703535476,1.41167824,60647.0,60644.0,0.0001]
[1722703535685,1.41167824,60647.0,60646.0,0.16704939]
[1722703535686,0.65212424,60647.0,60646.0,0.16704939]
[1722703535896,0.32234724,60647.0,60646.0,0.16704939]
[1722703536097,0.1,60656.0,60646.0,0.1790092]
[1722703536310,0.15745924,60655.0,60654.0,0.07875194]
[1722703536535,0.1,60661.0,60654.0,0.07875194]
[1722703536746,0.1,60661.0,60647.0,0.10098004]
[1722703536747,0.164885,60648.0,60647.0,0.09768256]
[1722703536955,0.329714,60659.0,60647.0,0.09768256]
[1722703537158,0.268,60676.0,60647.0,0.09768256]
[1722703537159,0.268,60676.0,60658.0,0.07875194]
[1722703537362,0.164841,60665.0,60661.0,0.07875194]
[1722703537573,0.15903363,60664.0,60661.0,0.07875194]
[1722703537754,0.15903363,60664.0,60662.0,0.01176417]
[1722703537983,0.164847,60662.0,60661.0,0.07875194]
[1722703538206,0.15745924,60662.0,60648.0,0.08208795]
[1722703538420,0.15745924,60657.0,60644.0,0.0001]
[1722703538612,0.25745924,60656.0,60646.0,0.22875193]
[1722703538818,0.164886,60648.0,60646.0,0.22875193]
[1722703538993,0.32234724,60647.0,60646.0,0.14999999]
[1722703539235,0.98190124,60647.0,60646.0,0.14999999]
[1722703539685,0.65212424,60647.0,60646.0,0.27669133]
[1722703539891,0.1,60656.0,60646.0,0.27669133]
[1722703539892,0.00157439,60661.0,60646.0,0.27669133]
[1722703540082,0.15745924,60660.0,60659.0,0.07875194]
[1722703540284,0.329727,60657.0,60647.0,0.264]
[1722703540504,0.164883,60649.0,60648.0,0.08598883]
[1722703540723,0.164885,60648.0,60647.0,0.264]
[1722703540925,0.494665,60647.0,60646.0,0.15091299]
[1722703541076,0.15745924,60647.0,60646.0,0.22966493]
[1722703541655,0.329725,60657.0,60646.0,0.22966493]
[1722703541861,0.164869,60654.0,60647.0,0.02432597]
[1722703542064,0.32233124,60653.0,60647.0,0.02432597]
[1722703542265,0.16487,60654.0,60649.0,0.3244]
[1722703542519,0.16487,60654.0,60650.0,0.05783909]
[1722703542520,0.164871,60654.0,60650.0,0.05783909]
[1722703542696,0.00777258,60670.0,60651.0,0.264]
[1722703542898,0.164875,60652.0,60651.0,0.264]
[1722703543320,0.49464,60650.0,60649.0,0.3244]
[1722703543524,0.48721924,60650.0,60647.0,0.07875194]
[1722703543721,0.1,60664.0,60647.0,0.07875194]
[1722703543924,0.164888,60647.0,60646.0,0.19445369]
[1722703544130,0.494665,60647.0,60646.0,0.19445369]
[1722703544337,0.164888,60647.0,60646.0,0.15091299]
[1722703544548,0.494665,60647.0,60646.0,0.15091299]
[1722703544722,0.98190124,60647.0,60646.0,0.15091299]
[1722703545085,0.65212424,60647.0,60646.0,0.15091299]
[1722703545288,0.98190124,60647.0,60646.0,0.15091299]
[1722703545462,0.98190124,60647.0,60646.0,0.22689369]
[1722703546070,0.98190124,60647.0,60646.0,0.15091299]
[1722703546650,0.32234724,60647.0,60646.0,0.15091299]
[1722703546849,0.12310953,60671.0,60646.0,0.15091299]
[1722703547034,0.15745924,60660.0,60659.0,0.07875194]
[1722703547234,0.15745924,60660.0,60659.0,0.34275194]
[1722703547479,0.48716524,60660.0,60659.0,0.70142713]
[1722703547680,0.65201824,60660.0,60659.0,0.62267519]
[1722703547911,0.15745924,60660.0,60659.0,0.62267519]
[1722703548319,0.65201824,60660.0,60659.0,0.62267519]
[1722703548515,0.98172424,60660.0,60659.0,0.3244]
[1722703548719,0.65201824,60660.0,60659.0,0.3244]
[1722703548920,0.164869,60654.0,60653.0,0.264]
[1722703549122,0.164888,60647.0,60646.0,0.15091299]
[1722703549291,0.65212424,60647.0,60646.0,0.15091299]
[1722703549494,0.98190124,60647.0,60646.0,0.1628728]
[1722703549717,0.32234724,60647.0,60646.0,0.18305677]
[1722703549930,0.32234724,60647.0,60646.0,0.1628728]
[1722703549931,0.15745924,60647.0,60646.0,0.1628728]
[1722703550141,0.65212424,60647.0,60646.0,0.1628728]
[1722703550343,0.32234724,60647.0,60646.0,0.1628728]
[1722703550538,0.65212424,60647.0,60646.0,0.1628728]
[1722703550746,0.32234724,60647.0,60646.0,0.18908467]
[1722703551009,0.65212424,60647.0,60646.0,0.1628728]
[1722703551518,0.78921325,60647.0,60646.0,0.1628728]
[1722703551686,0.45943625,60647.0,60646.0,0.1628728]
[1722703551886,1.11899025,60647.0,60646.0,0.1628728]
[1722703552101,0.45943625,60647.0,60646.0,0.1628728]
[1722703552306,0.29454825,60647.0,60646.0,0.18908467]
[1722703552504,0.45943625,60647.0,60646.0,0.18908467]
[1722703552741,0.13708901,60647.0,60646.0,0.18908467]
[1722703552967,0.05702905,60664.0,60646.0,0.18908467]
[1722703553194,0.2446,60669.0,60647.0,0.02781336]
[1722703553195,0.164887,60648.0,60647.0,0.02781336]
[1722703553406,0.329756,60651.0,60647.0,0.02781336]
[1722703553618,0.494656,60648.0,60647.0,0.03976094]
[1722703553832,0.63173531,60648.0,60647.0,0.03976094]
[1722703554033,1.29127731,60648.0,60647.0,0.01194758]
[1722703554266,1.31165724,60648.0,60647.0,0.01194758]
[1722703554478,0.824442,60647.0,60646.0,0.15091299]
[1722703554683,0.98190124,60647.0,60646.0,0.17592888]
[1722703554894,0.7892172,60647.0,60646.0,0.18788869]
[1722703555314,1.4487712,60647.0,60646.0,0.1628728]
[1722703555447,1.7785482,60647.0,60646.0,0.1628728]
[1722703555655,1.8785482,60647.0,60646.0,0.05312347]
[1722703556233,2.04993257,60647.0,60646.0,0.05312347]
[1722703556611,0.13709296,60647.0,60646.0,0.31712347]
[1722703556781,0.7892172,60647.0,60646.0,0.35088522]
[1722703556982,1.4487712,60647.0,60646.0,0.09884503]
[1722703557188,1.1189942,60647.0,60646.0,0.06508328]
[1722703557525,0.13709296,60647.0,60646.0,0.38948328]
[1722703557778,0.17229187,60651.0,60646.0,0.38948328]
[1722703557953,0.30196153,60650.0,60646.0,0.38948328]
[1722703558242,0.00741387,60651.0,60646.0,0.38948328]
[1722703558243,0.13708053,60649.0,60646.0,0.38948328]
[1722703558496,0.00741387,60651.0,60646.0,0.38948328]
[1722703558497,0.13708053,60648.0,60646.0,0.38948328]
[1722703558749,0.13708053,60647.0,60646.0,0.38948328]
[1722703558965,0.63174553,60647.0,60646.0,0.38948328]
[1722703559445,1.11898177,60647.0,60646.0,0.38948328]
[1722703559662,1.44875877,60647.0,60646.0,0.06508328]
[1722703560348,1.62012942,60647.0,60646.0,0.06508328]
[1722703560461,1.29035242,60647.0,60646.0,0.05312347]
[1722703560662,0.98190124,60647.0,60646.0,0.05312347]
[1722703560869,1.11899601,60647.0,60646.0,0.05312347]